[Event "January 2 Early 2024"]
[Site "https://www.chess.com"]
[Date "2024.01.02"]
[Round "3"]
[White "Filippova, Margarita"]
[Black "Ahmad, Khagan"]
[Result "1/2-1/2"]
[Board "140"]
[TimeControl "180+1"]
[WhiteFideId "34199680"]
[BlackFideId "13431552"]
[WhiteElo "2302"]
[BlackElo "2555"]
[WhiteTeam "RUS"]
[BlackTeam "AZE"]
[WhiteClock "0:00:18"]
[BlackClock "0:00:03"]

1. e4 {[%clk 0:03:00]}  d5 {[%clk 0:02:53]} 2. exd5 {[%clk 0:03:00]}  Nf6 {[%clk 0:02:54]} 3. c4 {[%clk 0:02:59]}  c6 {[%clk 0:02:53]} 4. Qa4 {[%clk 0:02:58]}  Bd7 {[%clk 0:02:30]} 5. Qb3 {[%clk 0:02:23]}  cxd5 {[%clk 0:02:20]} 6. cxd5 {[%clk 0:02:24]}  Na6 {[%clk 0:02:17]} 7. d4 {[%clk 0:02:21]}  Qa5+ {[%clk 0:02:10]} 8. Nc3 {[%clk 0:02:20]}  Nb4 {[%clk 0:02:03]} 9. Nf3 {[%clk 0:02:02]}  Rc8 {[%clk 0:01:49]} 10. Bd2 {[%clk 0:01:51]}  e6 {[%clk 0:01:25]} 11. dxe6 {[%clk 0:01:35]}  Bxe6 {[%clk 0:01:26]} 12. Qd1 {[%clk 0:01:36]}  a6 {[%clk 0:00:33]} 13. Be2 {[%clk 0:01:34]}  Nbd5 {[%clk 0:00:22]} 14. O-O {[%clk 0:01:33]}  Qb6 {[%clk 0:00:19]} 15. Qa4+ {[%clk 0:01:29]}  Bd7 {[%clk 0:00:18]} 16. Qb3 {[%clk 0:01:15]}  Qxb3 {[%clk 0:00:16]} 17. axb3 {[%clk 0:01:16]}  Bd6 {[%clk 0:00:16]} 18. Bc4 {[%clk 0:01:14]}  Nb6 {[%clk 0:00:15]} 19. Rfe1+ {[%clk 0:01:13]}  Kf8 {[%clk 0:00:15]} 20. Ne5 {[%clk 0:00:56]}  Nxc4 {[%clk 0:00:11]} 21. bxc4 {[%clk 0:00:54]}  Be6 {[%clk 0:00:09]} 22. b3 {[%clk 0:00:53]}  Bxe5 {[%clk 0:00:06]} 23. dxe5 {[%clk 0:00:54]}  Nd7 {[%clk 0:00:06]} 24. f4 {[%clk 0:00:48]}  g6 {[%clk 0:00:06]} 25. Nd5 {[%clk 0:00:45]}  Kg7 {[%clk 0:00:06]} 26. Be3 {[%clk 0:00:43]}  b5 {[%clk 0:00:04]} 27. Rec1 {[%clk 0:00:36]}  bxc4 {[%clk 0:00:04]} 28. bxc4 {[%clk 0:00:36]}  Rc6 {[%clk 0:00:03]} 29. Nb4 {[%clk 0:00:34]}  Rxc4 {[%clk 0:00:03]} 30. Nxa6 {[%clk 0:00:27]}  Ra8 {[%clk 0:00:03]} 31. Rxc4 {[%clk 0:00:18]}  Bxc4 {[%clk 0:00:03]} 32. Rd1 {[%clk 0:00:18]}  Rxa6 {[%clk 0:00:01]} 33. Rxd7 {[%clk 0:00:18]}  Ra1+ {[%clk 0:00:01]} 34. Kf2 {[%clk 0:00:18]}  Ra2+ {[%clk 0:00:02]} 35. Rd2 {[%clk 0:00:17]}  Rxd2+ {[%clk 0:00:02]} 36. Bxd2 {[%clk 0:00:18]}  Kf8 {[%clk 0:00:02]} 37. Bb4+ {[%clk 0:00:18]}  Ke8 {[%clk 0:00:03]} 38. g3 {[%clk 0:00:19]}  Kd7 {[%clk 0:00:03]} 39. Ke3 {[%clk 0:00:19]}  h5 {[%clk 0:00:04]} 40. Kd4 {[%clk 0:00:20]}  Ba6 {[%clk 0:00:04]} 41. Bd6 {[%clk 0:00:18]}  Ke6 {[%clk 0:00:04]} 42. Ke4 {[%clk 0:00:19]}  Bb7+ {[%clk 0:00:05]} 43. Ke3 {[%clk 0:00:19]}  Kf5 {[%clk 0:00:05]} 44. Kf2 {[%clk 0:00:20]}  Kg4 {[%clk 0:00:06]} 45. Kg1 {[%clk 0:00:20]}  Kh3 {[%clk 0:00:06]} 46. Be7 {[%clk 0:00:20]}  Bc6 {[%clk 0:00:06]} 47. Bh4 {[%clk 0:00:21]}  Bb7 {[%clk 0:00:07]} 48. Bd8 {[%clk 0:00:20]}  Bc6 {[%clk 0:00:07]} 49. Bh4 {[%clk 0:00:20]}  Ba8 {[%clk 0:00:07]} 50. Bd8 {[%clk 0:00:20]}  Bg2 {[%clk 0:00:08]} 51. Bh4 {[%clk 0:00:20]}  Bc6 {[%clk 0:00:04]} 52. Bd8 {[%clk 0:00:19]}  Bd5 {[%clk 0:00:04]} 53. Bc7 {[%clk 0:00:19]}  Bc4 {[%clk 0:00:04]} 54. Bd8 {[%clk 0:00:19]}  Bb5 {[%clk 0:00:04]} 55. Bh4 {[%clk 0:00:19]}  Ba4 {[%clk 0:00:05]} 56. Bf6 {[%clk 0:00:19]}  Kg4 {[%clk 0:00:05]} 57. Kg2 {[%clk 0:00:19]}  Bc6+ {[%clk 0:00:05]} 58. Kg1 {[%clk 0:00:19]}  Kf3 {[%clk 0:00:06]} 59. Be7 {[%clk 0:00:19]}  Ke2 {[%clk 0:00:06]} 60. Bh4 {[%clk 0:00:19]}  Bb7 {[%clk 0:00:05]} 61. Bf6 {[%clk 0:00:19]}  Bc6 {[%clk 0:00:06]} 62. Bh4 {[%clk 0:00:19]}  Bb7 {[%clk 0:00:06]} 63. Bf6 {[%clk 0:00:19]}  Bc8 {[%clk 0:00:05]} 64. Bd8 {[%clk 0:00:19]}  Bh3 {[%clk 0:00:05]} 65. Bh4 {[%clk 0:00:18]}  Kf3 {[%clk 0:00:03]} 1/2-1/2

[Event "January 2 Early 2024"]
[Site "https://www.chess.com"]
[Date "2024.01.02"]
[Round "3"]
[White "Ivanova, Karina"]
[Black "Morgunov, Marc"]
[Result "1-0"]
[Board "141"]
[TimeControl "180+1"]
[WhiteFideId "24139750"]
[BlackFideId "1640305"]
[WhiteElo "2301"]
[BlackElo "2553"]
[WhiteTeam "RUS"]
[BlackTeam "AUT"]
[WhiteClock "0:01:59"]
[BlackClock "0:00:38"]

1. Nf3 {[%clk 0:02:59]}  Nf6 {[%clk 0:02:59]} 2. g3 {[%clk 0:02:59]}  b6 {[%clk 0:03:00]} 3. Bg2 {[%clk 0:02:58]}  Bb7 {[%clk 0:03:00]} 4. O-O {[%clk 0:02:58]}  g6 {[%clk 0:03:01]} 5. c4 {[%clk 0:02:57]}  Bg7 {[%clk 0:03:01]} 6. d4 {[%clk 0:02:57]}  O-O {[%clk 0:03:02]} 7. Nc3 {[%clk 0:02:55]}  Ne4 {[%clk 0:03:02]} 8. Qc2 {[%clk 0:02:54]}  Nxc3 {[%clk 0:03:02]} 9. Qxc3 {[%clk 0:02:54]}  c5 {[%clk 0:03:02]} 10. Qd3 {[%clk 0:02:50]}  cxd4 {[%clk 0:02:58]} 11. Nxd4 {[%clk 0:02:50]}  Bxg2 {[%clk 0:02:58]} 12. Kxg2 {[%clk 0:02:50]}  d5 {[%clk 0:02:59]} 13. Be3 {[%clk 0:02:42]}  e5 {[%clk 0:02:50]} 14. Nb3 {[%clk 0:02:40]}  d4 {[%clk 0:02:35]} 15. Bd2 {[%clk 0:02:40]}  Nc6 {[%clk 0:02:32]} 16. e3 {[%clk 0:02:38]}  f5 {[%clk 0:02:01]} 17. exd4 {[%clk 0:02:36]}  e4 {[%clk 0:01:48]} 18. Qe2 {[%clk 0:02:33]}  Nxd4 {[%clk 0:01:29]} 19. Nxd4 {[%clk 0:02:33]}  Bxd4 {[%clk 0:01:30]} 20. Be3 {[%clk 0:02:33]}  Be5 {[%clk 0:01:27]} 21. f3 {[%clk 0:02:22]}  exf3+ {[%clk 0:01:25]} 22. Qxf3 {[%clk 0:02:22]}  Qf6 {[%clk 0:01:25]} 23. Rab1 {[%clk 0:02:17]}  Bxb2 {[%clk 0:01:20]} 24. Qd5+ {[%clk 0:02:15]}  Kh8 {[%clk 0:01:12]} 25. Rxb2 {[%clk 0:02:13]}  Qxb2+ {[%clk 0:01:12]} 26. Rf2 {[%clk 0:02:10]}  Qxf2+ {[%clk 0:00:41]} 27. Bxf2 {[%clk 0:02:08]}  h5 {[%clk 0:00:39]} 28. Bd4+ {[%clk 0:02:06]}  Kh7 {[%clk 0:00:39]} 29. Qd7+ {[%clk 0:02:03]}  Kh6 {[%clk 0:00:38]} 30. Qg7+ {[%clk 0:01:59]}  Kg5 {[%clk 0:00:38]} 31. h4+ {[%clk 0:01:59]}  Kg4 {[%clk 0:00:38]} 32. Qxg6# {[%clk 0:01:59]} 1-0

[Event "January 2 Early 2024"]
[Site "https://www.chess.com"]
[Date "2024.01.02"]
[Round "3"]
[White "Womacka, Mathias"]
[Black "Antonio, Jorge Carlos"]
[Result "1-0"]
[Board "143"]
[TimeControl "180+1"]
[WhiteFideId "4611390"]
[BlackFideId "113190"]
[WhiteElo "2549"]
[BlackElo "2292"]
[WhiteTeam "GER"]
[BlackTeam "ARG"]
[WhiteClock "0:01:09"]
[BlackClock "0:01:20"]

1. e4 {[%clk 0:03:00]}  c6 {[%clk 0:02:59]} 2. d4 {[%clk 0:02:59]}  d5 {[%clk 0:02:59]} 3. Nd2 {[%clk 0:02:59]}  dxe4 {[%clk 0:02:58]} 4. Nxe4 {[%clk 0:02:59]}  Bf5 {[%clk 0:02:58]} 5. Ng3 {[%clk 0:02:58]}  Bg6 {[%clk 0:02:58]} 6. h4 {[%clk 0:02:58]}  h6 {[%clk 0:02:57]} 7. Nf3 {[%clk 0:02:58]}  e6 {[%clk 0:02:57]} 8. Ne5 {[%clk 0:02:57]}  Bh7 {[%clk 0:02:56]} 9. Bd3 {[%clk 0:02:57]}  Bxd3 {[%clk 0:02:55]} 10. Qxd3 {[%clk 0:02:58]}  Nf6 {[%clk 0:02:55]} 11. Bd2 {[%clk 0:02:56]}  Nbd7 {[%clk 0:02:55]} 12. f4 {[%clk 0:02:55]}  Be7 {[%clk 0:02:53]} 13. O-O-O {[%clk 0:02:54]}  Qc7 {[%clk 0:02:51]} 14. Kb1 {[%clk 0:02:44]}  Nxe5 {[%clk 0:02:50]} 15. fxe5 {[%clk 0:02:44]}  Nd5 {[%clk 0:02:50]} 16. Ne4 {[%clk 0:02:37]}  O-O-O {[%clk 0:02:44]} 17. c4 {[%clk 0:02:28]}  Nb4 {[%clk 0:02:34]} 18. Bxb4 {[%clk 0:02:28]}  Bxb4 {[%clk 0:02:33]} 19. c5 {[%clk 0:02:28]}  Qd7 {[%clk 0:02:24]} 20. Qb3 {[%clk 0:02:16]}  Ba5 {[%clk 0:02:24]} 21. Nd6+ {[%clk 0:02:07]}  Kb8 {[%clk 0:02:22]} 22. Rhf1 {[%clk 0:02:02]}  Rhf8 {[%clk 0:02:21]} 23. Rf3 {[%clk 0:02:02]}  f5 {[%clk 0:02:17]} 24. Qa4 {[%clk 0:01:59]}  Bc7 {[%clk 0:02:15]} 25. Ra3 {[%clk 0:01:55]}  a6 {[%clk 0:02:12]} 26. Nxb7 {[%clk 0:01:53]}  a5 {[%clk 0:01:57]} 27. Nxa5 {[%clk 0:01:43]}  Bxa5 {[%clk 0:01:56]} 28. Qxa5 {[%clk 0:01:43]}  Qb7 {[%clk 0:01:36]} 29. Rb3 {[%clk 0:01:41]}  Rd7 {[%clk 0:01:35]} 30. Qa4 {[%clk 0:01:22]}  g5 {[%clk 0:01:30]} 31. hxg5 {[%clk 0:01:20]}  hxg5 {[%clk 0:01:29]} 32. Rxb7+ {[%clk 0:01:17]}  Kxb7 {[%clk 0:01:27]} 33. Rd3 {[%clk 0:01:16]}  Rb8 {[%clk 0:01:22]} 34. Rb3+ {[%clk 0:01:13]}  Kc8 {[%clk 0:01:20]} 35. Qxc6+ {[%clk 0:01:10]}  Rc7 {[%clk 0:01:20]} 36. Qe8# {[%clk 0:01:09]} 1-0

[Event "January 2 Early 2024"]
[Site "https://www.chess.com"]
[Date "2024.01.02"]
[Round "3"]
[White "Cardozo Munar, Carlos Eduardo"]
[Black "Ismayil, Malak"]
[Result "0-1"]
[Board "144"]
[TimeControl "180+1"]
[WhiteFideId "4409477"]
[BlackFideId "13412604"]
[WhiteElo "2292"]
[BlackElo "2548"]
[WhiteTeam "COL"]
[BlackTeam "AZE"]
[WhiteClock "0:00:13"]
[BlackClock "0:00:04"]

1. d4 {[%clk 0:02:57]}  Nf6 {[%clk 0:02:24]} 2. Bg5 {[%clk 0:02:56]}  e6 {[%clk 0:02:23]} 3. e4 {[%clk 0:02:56]}  d6 {[%clk 0:02:21]} 4. Nd2 {[%clk 0:02:55]}  Be7 {[%clk 0:02:21]} 5. Bd3 {[%clk 0:02:55]}  h6 {[%clk 0:02:21]} 6. Bh4 {[%clk 0:02:55]}  e5 {[%clk 0:02:19]} 7. c3 {[%clk 0:02:54]}  Nc6 {[%clk 0:02:17]} 8. a3 {[%clk 0:02:54]}  exd4 {[%clk 0:02:16]} 9. cxd4 {[%clk 0:02:55]}  Nxd4 {[%clk 0:02:16]} 10. Ne2 {[%clk 0:02:52]}  Nxe2 {[%clk 0:02:16]} 11. Qxe2 {[%clk 0:02:52]}  O-O {[%clk 0:02:13]} 12. O-O {[%clk 0:02:52]}  Nd7 {[%clk 0:02:11]} 13. Bg3 {[%clk 0:02:51]}  Bf6 {[%clk 0:02:10]} 14. Nc4 {[%clk 0:02:42]}  Re8 {[%clk 0:02:10]} 15. Ne3 {[%clk 0:02:38]}  Nc5 {[%clk 0:02:05]} 16. Rac1 {[%clk 0:01:29]}  Bxb2 {[%clk 0:01:57]} 17. Rxc5 {[%clk 0:01:26]}  dxc5 {[%clk 0:01:56]} 18. Qxb2 {[%clk 0:01:18]}  Qxd3 {[%clk 0:01:54]} 19. Nd5 {[%clk 0:01:13]}  Qxe4 {[%clk 0:01:33]} 20. Nxc7 {[%clk 0:01:04]}  Bd7 {[%clk 0:01:33]} 21. Nxa8 {[%clk 0:01:02]}  Rxa8 {[%clk 0:01:32]} 22. f3 {[%clk 0:00:53]}  Qd5 {[%clk 0:01:24]} 23. h4 {[%clk 0:00:42]}  Bc6 {[%clk 0:01:21]} 24. Kh2 {[%clk 0:00:42]}  Rd8 {[%clk 0:01:20]} 25. Re1 {[%clk 0:00:39]}  Qd2 {[%clk 0:01:01]} 26. Qe5 {[%clk 0:00:33]}  Bxf3 {[%clk 0:00:50]} 27. Rg1 {[%clk 0:00:29]}  Bc6 {[%clk 0:00:44]} 28. Qxc5 {[%clk 0:00:28]}  a6 {[%clk 0:00:38]} 29. Qf2 {[%clk 0:00:26]}  Qc3 {[%clk 0:00:34]} 30. Rf1 {[%clk 0:00:24]}  Rd7 {[%clk 0:00:31]} 31. Qf4 {[%clk 0:00:24]}  Qxa3 {[%clk 0:00:25]} 32. Re1 {[%clk 0:00:23]}  Rd8 {[%clk 0:00:20]} 33. Re3 {[%clk 0:00:20]}  Qa2 {[%clk 0:00:15]} 34. Bf2 {[%clk 0:00:12]}  Rd2 {[%clk 0:00:09]} 35. Kg3 {[%clk 0:00:13]}  Rd8 {[%clk 0:00:04]} 36. Kh2 {[%clk 0:00:13]}  Qd5 {[%clk 0:00:04]} 37. Kg3 {[%clk 0:00:13]}  Qxg2# {[%clk 0:00:04]} 0-1

[Event "January 2 Early 2024"]
[Site "https://www.chess.com"]
[Date "2024.01.02"]
[Round "3"]
[White "Monpeurt, Cyrielle"]
[Black "Jeet, Jain"]
[Result "0-1"]
[Board "146"]
[TimeControl "180+1"]
[WhiteFideId "677400"]
[BlackFideId "5073022"]
[WhiteElo "2286"]
[BlackElo "2547"]
[WhiteTeam "FRA"]
[BlackTeam "IND"]
[WhiteClock "0:01:45"]
[BlackClock "0:02:30"]

1. Nf3 {[%clk 0:03:00]}  Nc6 {[%clk 0:02:55]} 2. b3 {[%clk 0:03:00]}  d5 {[%clk 0:02:54]} 3. Bb2 {[%clk 0:03:00]}  Bf5 {[%clk 0:02:54]} 4. e3 {[%clk 0:02:57]}  a6 {[%clk 0:02:53]} 5. Be2 {[%clk 0:02:46]}  e6 {[%clk 0:02:53]} 6. O-O {[%clk 0:02:45]}  Nf6 {[%clk 0:02:52]} 7. Nh4 {[%clk 0:02:43]}  Bg6 {[%clk 0:02:52]} 8. Nxg6 {[%clk 0:02:34]}  hxg6 {[%clk 0:02:53]} 9. c4 {[%clk 0:02:32]}  dxc4 {[%clk 0:02:52]} 10. bxc4 {[%clk 0:02:25]}  Bd6 {[%clk 0:02:52]} 11. g3 {[%clk 0:02:24]}  g5 {[%clk 0:02:38]} 12. d4 {[%clk 0:02:19]}  Qd7 {[%clk 0:02:32]} 13. Qa4 {[%clk 0:02:09]}  e5 {[%clk 0:02:31]} 14. c5 {[%clk 0:01:45]}  Qh3 {[%clk 0:02:30]} 0-1

[Event "January 2 Early 2024"]
[Site "https://www.chess.com"]
[Date "2024.01.02"]
[Round "3"]
[White "Coro, Lucas"]
[Black "Deveci, Huseyin Said"]
[Result "0-1"]
[Board "147"]
[TimeControl "180+1"]
[WhiteFideId "147222"]
[BlackFideId "26322455"]
[WhiteElo "2543"]
[BlackElo "2286"]
[WhiteTeam "ARG"]
[BlackTeam "TUR"]
[WhiteClock "0:00:01"]
[BlackClock "0:00:02"]

1. e4 {[%clk 0:03:00]}  c5 {[%clk 0:02:59]} 2. Nf3 {[%clk 0:03:01]}  e6 {[%clk 0:02:58]} 3. d4 {[%clk 0:03:01]}  cxd4 {[%clk 0:02:59]} 4. Nxd4 {[%clk 0:03:01]}  a6 {[%clk 0:02:59]} 5. Bd3 {[%clk 0:03:01]}  Bc5 {[%clk 0:02:59]} 6. Nb3 {[%clk 0:03:00]}  Ba7 {[%clk 0:02:59]} 7. Qf3 {[%clk 0:03:01]}  Nc6 {[%clk 0:02:56]} 8. Be3 {[%clk 0:02:56]}  Qf6 {[%clk 0:02:53]} 9. Qxf6 {[%clk 0:02:52]}  Nxf6 {[%clk 0:02:54]} 10. Bxa7 {[%clk 0:02:52]}  Rxa7 {[%clk 0:02:54]} 11. N1d2 {[%clk 0:02:49]}  d5 {[%clk 0:02:52]} 12. c3 {[%clk 0:02:42]}  O-O {[%clk 0:02:49]} 13. Rd1 {[%clk 0:02:28]}  Rd8 {[%clk 0:02:46]} 14. Ke2 {[%clk 0:02:23]}  Ne5 {[%clk 0:02:35]} 15. Bc2 {[%clk 0:02:18]}  Bd7 {[%clk 0:02:34]} 16. f4 {[%clk 0:02:14]}  Bb5+ {[%clk 0:02:32]} 17. Kf2 {[%clk 0:02:01]}  Nfg4+ {[%clk 0:01:24]} 18. Kg3 {[%clk 0:01:55]}  Ne3 {[%clk 0:01:20]} 19. fxe5 {[%clk 0:01:55]}  Nxc2 {[%clk 0:01:21]} 20. Nd4 {[%clk 0:01:26]}  Nxd4 {[%clk 0:01:20]} 21. cxd4 {[%clk 0:01:27]}  Bc6 {[%clk 0:01:18]} 22. Kf4 {[%clk 0:01:21]}  Raa8 {[%clk 0:01:18]} 23. Rc1 {[%clk 0:01:10]}  dxe4 {[%clk 0:01:17]} 24. Ke3 {[%clk 0:01:11]}  Rd7 {[%clk 0:00:40]} 25. Nxe4 {[%clk 0:01:08]}  Bxe4 {[%clk 0:00:40]} 26. Kxe4 {[%clk 0:01:08]}  Rad8 {[%clk 0:00:41]} 27. Rhd1 {[%clk 0:01:07]}  f6 {[%clk 0:00:42]} 28. exf6 {[%clk 0:01:07]}  gxf6 {[%clk 0:00:43]} 29. g4 {[%clk 0:00:57]}  Kf7 {[%clk 0:00:42]} 30. a4 {[%clk 0:00:55]}  Kg6 {[%clk 0:00:34]} 31. Rc5 {[%clk 0:00:51]}  Rd6 {[%clk 0:00:04]} 32. a5 {[%clk 0:00:50]}  b6 {[%clk 0:00:04]} 33. axb6 {[%clk 0:00:39]}  Rxb6 {[%clk 0:00:04]} 34. Rd2 {[%clk 0:00:39]}  Rdd6 {[%clk 0:00:05]} 35. h4 {[%clk 0:00:38]}  Rb4 {[%clk 0:00:05]} 36. h5+ {[%clk 0:00:38]}  Kh6 {[%clk 0:00:06]} 37. Ke3 {[%clk 0:00:35]}  Rb3+ {[%clk 0:00:04]} 38. Kf4 {[%clk 0:00:34]}  Rb4 {[%clk 0:00:03]} 39. Ke3 {[%clk 0:00:34]}  Rb3+ {[%clk 0:00:03]} 40. Rc3 {[%clk 0:00:35]}  Rb4 {[%clk 0:00:03]} 41. Rc7 {[%clk 0:00:26]}  Rb3+ {[%clk 0:00:03]} 42. Kf4 {[%clk 0:00:26]}  Rb4 {[%clk 0:00:03]} 43. Ke4 {[%clk 0:00:25]}  e5 {[%clk 0:00:03]} 44. Kf5 {[%clk 0:00:25]}  Rbxd4 {[%clk 0:00:03]} 45. Rxd4 {[%clk 0:00:24]}  exd4 {[%clk 0:00:03]} 46. Rc2 {[%clk 0:00:21]}  d3 {[%clk 0:00:04]} 47. Rd2 {[%clk 0:00:21]}  Rd4 {[%clk 0:00:04]} 48. Kxf6 {[%clk 0:00:19]}  Rxg4 {[%clk 0:00:04]} 49. Rxd3 {[%clk 0:00:19]}  Kxh5 {[%clk 0:00:04]} 50. Rd7 {[%clk 0:00:18]}  h6 {[%clk 0:00:04]} 51. Rd3 {[%clk 0:00:13]}  Rg2 {[%clk 0:00:03]} 52. b3 {[%clk 0:00:11]}  Kh4 {[%clk 0:00:03]} 53. Rd4+ {[%clk 0:00:10]}  Rg4 {[%clk 0:00:02]} 54. Rd5 {[%clk 0:00:09]}  h5 {[%clk 0:00:03]} 55. Ra5 {[%clk 0:00:10]}  Kh3 {[%clk 0:00:02]} 56. Rxa6 {[%clk 0:00:10]}  h4 {[%clk 0:00:02]} 57. Ra2 {[%clk 0:00:07]}  Rb4 {[%clk 0:00:02]} 58. Rb2 {[%clk 0:00:05]}  Kg3 {[%clk 0:00:03]} 59. Kg5 {[%clk 0:00:03]}  h3 {[%clk 0:00:03]} 60. Rb1 {[%clk 0:00:02]}  h2 {[%clk 0:00:03]} 61. Kf5 {[%clk 0:00:03]}  Kg2 {[%clk 0:00:03]} 62. Rb2+ {[%clk 0:00:03]}  Kg1 {[%clk 0:00:03]} 63. Rb1+ {[%clk 0:00:04]}  Kg2 {[%clk 0:00:04]} 64. Rb2+ {[%clk 0:00:04]}  Kg3 {[%clk 0:00:04]} 65. Rb1 {[%clk 0:00:03]}  Kf2 {[%clk 0:00:01]} 66. Ke5 {[%clk 0:00:03]}  Kg2 {[%clk 0:00:01]} 67. Kd5 {[%clk 0:00:03]}  h1=Q {[%clk 0:00:02]} 68. Rxh1 {[%clk 0:00:01]}  Kxh1 {[%clk 0:00:02]} 0-1

[Event "January 2 Early 2024"]
[Site "https://www.chess.com"]
[Date "2024.01.02"]
[Round "3"]
[White "Vanek, Tomas"]
[Black "Prithu Gupta"]
[Result "0-1"]
[Board "149"]
[TimeControl "180+1"]
[WhiteFideId "313459"]
[BlackFideId "46618546"]
[WhiteElo "2272"]
[BlackElo "2542"]
[WhiteTeam "CZE"]
[BlackTeam "IND"]
[WhiteClock "0:00:52"]
[BlackClock "0:02:15"]

1. e4 {[%clk 0:02:24]}  e5 {[%clk 0:02:55]} 2. Nc3 {[%clk 0:02:22]}  Ne7 {[%clk 0:02:54]} 3. f4 {[%clk 0:02:15]}  exf4 {[%clk 0:02:52]} 4. Nf3 {[%clk 0:02:14]}  d5 {[%clk 0:02:51]} 5. d4 {[%clk 0:02:09]}  Nbc6 {[%clk 0:02:50]} 6. Bxf4 {[%clk 0:02:03]}  Bg4 {[%clk 0:02:50]} 7. Bb5 {[%clk 0:01:40]}  dxe4 {[%clk 0:02:45]} 8. d5 {[%clk 0:01:24]}  exf3 {[%clk 0:02:45]} 9. gxf3 {[%clk 0:01:23]}  Bd7 {[%clk 0:02:24]} 10. dxc6 {[%clk 0:01:22]}  Bxc6 {[%clk 0:02:23]} 11. Bxc6+ {[%clk 0:01:22]}  Nxc6 {[%clk 0:02:23]} 12. Qe2+ {[%clk 0:01:20]}  Be7 {[%clk 0:02:22]} 13. Rg1 {[%clk 0:01:18]}  O-O {[%clk 0:02:22]} 14. Ne4 {[%clk 0:01:12]}  f5 {[%clk 0:02:20]} 15. Bh6 {[%clk 0:01:10]}  Bb4+ {[%clk 0:02:17]} 16. c3 {[%clk 0:01:09]}  Qh4+ {[%clk 0:02:17]} 17. Ng3 {[%clk 0:01:05]}  Qxh6 {[%clk 0:02:16]} 18. cxb4 {[%clk 0:01:05]}  Rae8 {[%clk 0:02:15]} 19. Ne4 {[%clk 0:01:04]}  fxe4 {[%clk 0:02:15]} 20. Qc4+ {[%clk 0:00:52]}  Kh8 {[%clk 0:02:15]} 0-1

[Event "January 2 Early 2024"]
[Site "https://www.chess.com"]
[Date "2024.01.02"]
[Round "3"]
[White "Player, Edmund C"]
[Black "Kambrath, Yannick"]
[Result "0-1"]
[Board "150"]
[TimeControl "180+1"]
[WhiteFideId "406520"]
[BlackFideId "20632525"]
[WhiteElo "2271"]
[BlackElo "2539"]
[WhiteTeam "ENG"]
[BlackTeam "FRA"]
[WhiteClock "0:00:25"]
[BlackClock "0:00:10"]

1. e4 {[%clk 0:03:00]}  e5 {[%clk 0:02:59]} 2. Nf3 {[%clk 0:02:54]}  Nc6 {[%clk 0:03:00]} 3. Bc4 {[%clk 0:02:53]}  Bc5 {[%clk 0:02:58]} 4. d3 {[%clk 0:02:52]}  Nf6 {[%clk 0:02:59]} 5. c3 {[%clk 0:02:52]}  a6 {[%clk 0:02:59]} 6. Nbd2 {[%clk 0:02:51]}  d6 {[%clk 0:02:59]} 7. O-O {[%clk 0:02:47]}  Na5 {[%clk 0:02:54]} 8. Re1 {[%clk 0:02:40]}  Nxc4 {[%clk 0:02:54]} 9. Nxc4 {[%clk 0:02:40]}  O-O {[%clk 0:02:51]} 10. d4 {[%clk 0:02:24]}  exd4 {[%clk 0:02:49]} 11. cxd4 {[%clk 0:02:25]}  Bb4 {[%clk 0:02:49]} 12. Bd2 {[%clk 0:02:17]}  Bxd2 {[%clk 0:02:48]} 13. Nfxd2 {[%clk 0:01:56]}  d5 {[%clk 0:02:45]} 14. Ne5 {[%clk 0:01:42]}  Be6 {[%clk 0:02:40]} 15. exd5 {[%clk 0:01:19]}  Bxd5 {[%clk 0:02:33]} 16. Ndc4 {[%clk 0:01:16]}  Re8 {[%clk 0:02:27]} 17. Ne3 {[%clk 0:01:14]}  Be6 {[%clk 0:02:18]} 18. Qd3 {[%clk 0:01:04]}  c6 {[%clk 0:02:17]} 19. b3 {[%clk 0:01:03]}  a5 {[%clk 0:02:15]} 20. Rad1 {[%clk 0:00:51]}  a4 {[%clk 0:02:12]} 21. Re2 {[%clk 0:00:32]}  Nd5 {[%clk 0:02:06]} 22. Nxd5 {[%clk 0:00:27]}  Bxd5 {[%clk 0:02:02]} 23. b4 {[%clk 0:00:27]}  a3 {[%clk 0:01:51]} 24. Rdd2 {[%clk 0:00:21]}  Qd6 {[%clk 0:01:49]} 25. Qc3 {[%clk 0:00:11]}  b5 {[%clk 0:01:24]} 26. f3 {[%clk 0:00:08]}  Re6 {[%clk 0:01:23]} 27. Kf2 {[%clk 0:00:04]}  Ra4 {[%clk 0:01:20]} 28. Qc5 {[%clk 0:00:01]}  Rxb4 {[%clk 0:01:02]} 29. Re3 {[%clk 0:00:01]}  Ra4 {[%clk 0:00:54]} 30. f4 {[%clk 0:00:01]}  g6 {[%clk 0:00:46]} 31. g3 {[%clk 0:00:01]}  Kg7 {[%clk 0:00:39]} 32. Qb6 {[%clk 0:00:02]}  Qe7 {[%clk 0:00:18]} 33. Qb8 {[%clk 0:00:01]}  Qe8 {[%clk 0:00:15]} 34. Qc7 {[%clk 0:00:01]}  Ra8 {[%clk 0:00:12]} 35. Qb6 {[%clk 0:00:02]}  Rb8 {[%clk 0:00:12]} 36. Qc5 {[%clk 0:00:02]}  Qe7 {[%clk 0:00:12]} 37. Qc3 {[%clk 0:00:03]}  Ra8 {[%clk 0:00:12]} 38. Qc5 {[%clk 0:00:03]}  Qxc5 {[%clk 0:00:12]} 39. dxc5 {[%clk 0:00:04]}  b4 {[%clk 0:00:11]} 40. Rd4 {[%clk 0:00:04]}  Rb8 {[%clk 0:00:11]} 41. Re2 {[%clk 0:00:04]}  b3 {[%clk 0:00:09]} 42. axb3 {[%clk 0:00:04]}  Bxb3 {[%clk 0:00:09]} 43. Ra4 {[%clk 0:00:05]}  Bxa4 {[%clk 0:00:08]} 44. Re3 {[%clk 0:00:05]}  a2 {[%clk 0:00:08]} 45. Ra3 {[%clk 0:00:06]}  Rb1 {[%clk 0:00:07]} 46. Rxa2 {[%clk 0:00:06]}  Bb3 {[%clk 0:00:06]} 47. Ra3 {[%clk 0:00:07]}  Bd5 {[%clk 0:00:06]} 48. Ke3 {[%clk 0:00:08]}  Rb2 {[%clk 0:00:06]} 49. Ra7 {[%clk 0:00:07]}  Rxe5+ {[%clk 0:00:04]} 50. fxe5 {[%clk 0:00:08]}  Rxh2 {[%clk 0:00:04]} 51. e6 {[%clk 0:00:08]}  Bxe6 {[%clk 0:00:05]} 52. Kd4 {[%clk 0:00:09]}  Rh3 {[%clk 0:00:06]} 53. Ke5 {[%clk 0:00:09]}  h5 {[%clk 0:00:06]} 54. Kd6 {[%clk 0:00:10]}  Rxg3 {[%clk 0:00:06]} 55. Kxc6 {[%clk 0:00:11]}  h4 {[%clk 0:00:07]} 56. Kd6 {[%clk 0:00:12]}  h3 {[%clk 0:00:08]} 57. c6 {[%clk 0:00:13]}  Rc3 {[%clk 0:00:08]} 58. c7 {[%clk 0:00:14]}  h2 {[%clk 0:00:08]} 59. Ra1 {[%clk 0:00:14]}  g5 {[%clk 0:00:08]} 60. Rh1 {[%clk 0:00:14]}  Rc2 {[%clk 0:00:08]} 61. Ke7 {[%clk 0:00:12]}  g4 {[%clk 0:00:08]} 62. Kd8 {[%clk 0:00:13]}  g3 {[%clk 0:00:07]} 63. Rxh2 {[%clk 0:00:12]}  gxh2 {[%clk 0:00:06]} 64. c8=Q {[%clk 0:00:12]}  Rxc8+ {[%clk 0:00:05]} 65. Ke7 {[%clk 0:00:13]}  Re8+ {[%clk 0:00:05]} 66. Kxe8 {[%clk 0:00:13]}  Bd7+ {[%clk 0:00:06]} 67. Ke7 {[%clk 0:00:14]}  h1=Q {[%clk 0:00:06]} 68. Kd8 {[%clk 0:00:14]}  Be8 {[%clk 0:00:06]} 69. Ke7 {[%clk 0:00:15]}  f5 {[%clk 0:00:06]} 70. Ke6 {[%clk 0:00:16]}  f4 {[%clk 0:00:07]} 71. Ke5 {[%clk 0:00:16]}  f3 {[%clk 0:00:08]} 72. Ke6 {[%clk 0:00:17]}  f2 {[%clk 0:00:09]} 73. Ke7 {[%clk 0:00:18]}  f1=Q {[%clk 0:00:09]} 74. Kd8 {[%clk 0:00:19]}  Bg6 {[%clk 0:00:07]} 75. Ke7 {[%clk 0:00:20]}  Bh7 {[%clk 0:00:08]} 76. Ke8 {[%clk 0:00:21]}  Qhg2 {[%clk 0:00:08]} 77. Ke7 {[%clk 0:00:22]}  Qge2+ {[%clk 0:00:08]} 78. Kd7 {[%clk 0:00:22]}  Qfd1+ {[%clk 0:00:09]} 79. Kc7 {[%clk 0:00:23]}  Qec2+ {[%clk 0:00:10]} 80. Kb7 {[%clk 0:00:24]}  Qdb1+ {[%clk 0:00:10]} 81. Ka7 {[%clk 0:00:25]}  Qca2# {[%clk 0:00:10]} 0-1